[Event "*** Titled Tuesday Blitz"]
[Site "Chess.com"]
[Date "2021.04.20"]
[Round "7"]
[White "esrosenberg"]
[Black "chessdiamant"]
[Result "0-1"]
[WhiteElo "2199"]
[BlackElo "2336"]
[TimeControl "180+1"]
[EndTime "11:17:30 PDT"]
[Termination "chessdiamant won by checkmate"]

1. Nf3 {[%clk 0:03:00.9]} 1... c5 {[%clk 0:02:57.5]} 2. b4 {[%clk 0:03:00.9]}
2... cxb4 {[%clk 0:02:56.4]} 3. a3 {[%clk 0:03:01.5]} 3... bxa3 {[%clk
0:02:53.3]} 4. c4 {[%clk 0:03:01.9]} 4... Nc6 {[%clk 0:02:51.4]} 5. e4 {[%clk
0:02:57.4]} 5... e5 {[%clk 0:02:50.6]} 6. Be2 {[%clk 0:02:53.6]} 6... Nf6 {[%clk
0:02:43.4]} 7. Nc3 {[%clk 0:02:52.7]} 7... Bc5 {[%clk 0:02:39.7]} 8. O-O {[%clk
0:02:51.5]} 8... O-O {[%clk 0:02:39.3]} 9. Nxe5 {[%clk 0:02:41.7]} 9... Nxe5
{[%clk 0:02:36.5]} 10. d4 {[%clk 0:02:41.9]} 10... Bb4 {[%clk 0:02:34.6]} 11.
Na2 {[%clk 0:02:38]} 11... Bd6 {[%clk 0:02:29.5]} 12. dxe5 {[%clk 0:02:37.8]}
12... Bxe5 {[%clk 0:02:30.4]} 13. Bxa3 {[%clk 0:02:33.1]} 13... Bxa1 {[%clk
0:02:27.5]} 14. Qxa1 {[%clk 0:02:25.1]} 14... Re8 {[%clk 0:02:14.8]} 15. f3
{[%clk 0:02:03.4]} 15... d5 {[%clk 0:02:06.4]} 16. cxd5 {[%clk 0:01:56.2]} 16...
Qb6+ {[%clk 0:02:05]} 17. Kh1 {[%clk 0:01:54.5]} 17... Nxd5 {[%clk 0:02:04.4]}
18. Rb1 {[%clk 0:01:44.7]} 18... Qf6 {[%clk 0:01:56.7]} 19. Bb2 {[%clk
0:01:38.1]} 19... Qg6 {[%clk 0:01:51.5]} 20. Bb5 {[%clk 0:01:32.9]} 20... Ne3
{[%clk 0:01:36.8]} 21. Rg1 {[%clk 0:01:21.5]} 21... Rd8 {[%clk 0:01:29.1]} 22.
Qe1 {[%clk 0:00:47.8]} 22... Nd1 {[%clk 0:00:55.2]} 23. Ba1 {[%clk 0:00:33.1]}
23... Be6 {[%clk 0:00:50.9]} 24. Nc3 {[%clk 0:00:29.9]} 24... Nxc3 {[%clk
0:00:49.4]} 25. Qxc3 {[%clk 0:00:23.5]} 25... Rac8 {[%clk 0:00:48.4]} 26. Qb2
{[%clk 0:00:21.4]} 26... a6 {[%clk 0:00:47.3]} 27. Be2 {[%clk 0:00:15.3]} 27...
b5 {[%clk 0:00:44.8]} 28. f4 {[%clk 0:00:14.7]} 28... Bc4 {[%clk 0:00:31.7]} 29.
f5 {[%clk 0:00:11.6]} 29... Qg5 {[%clk 0:00:19.8]} 30. Bf3 {[%clk 0:00:10.3]}
30... h5 {[%clk 0:00:13.8]} 31. Bxh5 {[%clk 0:00:08.3]} 31... a5 {[%clk
0:00:11.7]} 32. Bf3 {[%clk 0:00:08.1]} 32... a4 {[%clk 0:00:11.7]} 33. Qe5
{[%clk 0:00:08.6]} 33... f6 {[%clk 0:00:10.6]} 34. Qe7 {[%clk 0:00:07.6]} 34...
a3 {[%clk 0:00:07.1]} 35. e5 {[%clk 0:00:07.4]} 35... Qxf5 {[%clk 0:00:05.9]}
36. exf6 {[%clk 0:00:06.5]} 36... gxf6 {[%clk 0:00:05.9]} 37. Bxf6 {[%clk
0:00:06]} 37... Rd7 {[%clk 0:00:05]} 38. Qe5 {[%clk 0:00:05.3]} 38... Qxe5
{[%clk 0:00:04.8]} 39. Bxe5 {[%clk 0:00:06.2]} 39... a2 {[%clk 0:00:05]} 40. Bg4
{[%clk 0:00:06.2]} 40... Rcd8 {[%clk 0:00:04.3]} 41. Bxd7 {[%clk 0:00:06.3]}
41... Rxd7 {[%clk 0:00:05.2]} 42. Ba1 {[%clk 0:00:06.4]} 42... b4 {[%clk
0:00:04.7]} 43. Rc1 {[%clk 0:00:05.2]} 43... b3 {[%clk 0:00:04]} 44. h4 {[%clk
0:00:04.5]} 44... Bf7 {[%clk 0:00:03.7]} 45. Rc3 {[%clk 0:00:03.5]} 45... Rd1+
{[%clk 0:00:03.5]} 46. Kh2 {[%clk 0:00:04]} 46... Rxa1 {[%clk 0:00:04.2]} 47.
Rc8+ {[%clk 0:00:04.7]} 47... Kg7 {[%clk 0:00:04.2]} 48. Rc7 {[%clk 0:00:05.6]}
48... Rb1 {[%clk 0:00:04.2]} 49. h5 {[%clk 0:00:06.5]} 49... a1=Q {[%clk
0:00:03.9]} 50. h6+ {[%clk 0:00:07.4]} 50... Kxh6 {[%clk 0:00:04.4]} 51. Rc6+
{[%clk 0:00:08.3]} 51... Bg6 {[%clk 0:00:04.4]} 52. Ra6 {[%clk 0:00:09.2]} 52...
Rh1+ {[%clk 0:00:04.3]} 53. Kg3 {[%clk 0:00:09.5]} 53... Qxa6 {[%clk 0:00:05.2]}
54. Kg4 {[%clk 0:00:10.2]} 54... Qd3 {[%clk 0:00:06]} 55. g3 {[%clk 0:00:11.1]}
55... Qf5# {[%clk 0:00:06.3]} 0-1

[Event "*** Titled Tuesday Blitz"]
[Site "Chess.com"]
[Date "2021.04.20"]
[Round "7"]
[White "Steegersee"]
[Black "HackingKid98"]
[Result "0-1"]
[WhiteElo "2238"]
[BlackElo "2469"]
[TimeControl "180+1"]
[EndTime "11:17:31 PDT"]
[Termination "HackingKid98 won by checkmate"]

1. e4 {[%clk 0:02:55.2]} 1... d5 {[%clk 0:02:59.6]} 2. exd5 {[%clk 0:02:54.7]}
2... Qxd5 {[%clk 0:03:00.5]} 3. Nc3 {[%clk 0:02:55.2]} 3... Qd6 {[%clk
0:03:00.4]} 4. Nf3 {[%clk 0:02:54.8]} 4... c6 {[%clk 0:02:59.5]} 5. b3 {[%clk
0:02:55.3]} 5... Nf6 {[%clk 0:02:58.3]} 6. Bb2 {[%clk 0:02:55.7]} 6... Bg4
{[%clk 0:02:56.3]} 7. h3 {[%clk 0:02:54.7]} 7... Bh5 {[%clk 0:02:54.7]} 8. g4
{[%clk 0:02:54.6]} 8... Bg6 {[%clk 0:02:54.3]} 9. Bg2 {[%clk 0:02:54.5]} 9... e6
{[%clk 0:02:53.6]} 10. d4 {[%clk 0:02:50.7]} 10... Qc7 {[%clk 0:02:52.5]} 11.
Qe2 {[%clk 0:02:46]} 11... Bb4 {[%clk 0:02:51.6]} 12. a3 {[%clk 0:02:33.4]}
12... Ba5 {[%clk 0:02:48.5]} 13. O-O-O {[%clk 0:02:29.8]} 13... Nbd7 {[%clk
0:02:44.7]} 14. Ne5 {[%clk 0:02:26.7]} 14... Nxe5 {[%clk 0:02:42]} 15. dxe5
{[%clk 0:02:27.6]} 15... Nd5 {[%clk 0:02:42]} 16. Ne4 {[%clk 0:01:52.2]} 16...
Bxe4 {[%clk 0:02:21.4]} 17. Qxe4 {[%clk 0:01:41.4]} 17... Nc3 {[%clk 0:01:43.3]}
18. Qe3 {[%clk 0:01:29.8]} 18... Nxd1 {[%clk 0:01:40.5]} 19. Rxd1 {[%clk
0:01:27.9]} 19... Rd8 {[%clk 0:01:34.3]} 20. Rd6 {[%clk 0:01:05.1]} 20... O-O
{[%clk 0:01:18.3]} 21. b4 {[%clk 0:00:58.9]} 21... Bb6 {[%clk 0:01:13.2]} 22.
Qd2 {[%clk 0:00:58.1]} 22... Qc8 {[%clk 0:01:09.6]} 23. f4 {[%clk 0:00:55.3]}
23... Bc7 {[%clk 0:01:09.4]} 24. Rxd8 {[%clk 0:00:50.6]} 24... Rxd8 {[%clk
0:01:10.3]} 25. Qe2 {[%clk 0:00:45.4]} 25... Qd7 {[%clk 0:01:09]} 26. Be4 {[%clk
0:00:44.3]} 26... Bb6 {[%clk 0:01:03.7]} 27. Qd3 {[%clk 0:00:18.1]} 27... Qxd3
{[%clk 0:00:59.5]} 28. cxd3 {[%clk 0:00:19]} 28... Bd4 {[%clk 0:00:58.8]} 29.
Bxd4 {[%clk 0:00:18.5]} 29... Rxd4 {[%clk 0:00:59.7]} 30. Kc2 {[%clk 0:00:18.6]}
30... Rd8 {[%clk 0:00:57.4]} 31. Kc3 {[%clk 0:00:18.3]} 31... f6 {[%clk
0:00:55.5]} 32. Kc4 {[%clk 0:00:14.5]} 32... Kf7 {[%clk 0:00:54.6]} 33. d4
{[%clk 0:00:13.9]} 33... g5 {[%clk 0:00:52.7]} 34. fxg5 {[%clk 0:00:12.2]} 34...
fxg5 {[%clk 0:00:52.5]} 35. Bxh7 {[%clk 0:00:10.5]} 35... Rh8 {[%clk 0:00:51.7]}
36. Be4 {[%clk 0:00:11.1]} 36... Rxh3 {[%clk 0:00:50.8]} 37. Kc5 {[%clk
0:00:11.6]} 37... Rxa3 {[%clk 0:00:50.1]} 38. Kd6 {[%clk 0:00:11]} 38... Ra4
{[%clk 0:00:48.3]} 39. Bb1 {[%clk 0:00:06.5]} 39... Rxb4 {[%clk 0:00:46.6]} 40.
Ba2 {[%clk 0:00:06.8]} 40... Rxd4+ {[%clk 0:00:45.9]} 41. Kc7 {[%clk 0:00:06.8]}
41... Rxg4 {[%clk 0:00:40.8]} 42. Kxb7 {[%clk 0:00:06.4]} 42... Re4 {[%clk
0:00:36.7]} 43. Kxa7 {[%clk 0:00:03.4]} 43... Rxe5 {[%clk 0:00:37.6]} 44. Kb6
{[%clk 0:00:04.2]} 44... Kf6 {[%clk 0:00:38]} 45. Kxc6 {[%clk 0:00:03.4]} 45...
g4 {[%clk 0:00:38.9]} 46. Bc4 {[%clk 0:00:02.4]} 46... g3 {[%clk 0:00:39.8]} 47.
Bf1 {[%clk 0:00:02.7]} 47... Kg5 {[%clk 0:00:37.7]} 48. Bh3 {[%clk 0:00:03.2]}
48... Re1 {[%clk 0:00:38]} 49. Bg2 {[%clk 0:00:04.1]} 49... Kf4 {[%clk
0:00:37.7]} 50. Kd6 {[%clk 0:00:03.8]} 50... Ke3 {[%clk 0:00:38.6]} 51. Bh3
{[%clk 0:00:03.8]} 51... Kf2 {[%clk 0:00:39.5]} 52. Bg4 {[%clk 0:00:02.2]} 52...
g2 {[%clk 0:00:40.4]} 53. Bh5 {[%clk 0:00:02.6]} 53... g1=Q {[%clk 0:00:39.8]}
54. Bg6 {[%clk 0:00:03.5]} 54... Qg3+ {[%clk 0:00:40]} 55. Ke7 {[%clk
0:00:03.4]} 55... Qf4 {[%clk 0:00:40.9]} 56. Ke8 {[%clk 0:00:03.8]} 56... e5
{[%clk 0:00:40.6]} 57. Bf7 {[%clk 0:00:04.7]} 57... e4 {[%clk 0:00:41.5]} 58.
Ke7 {[%clk 0:00:05.6]} 58... e3 {[%clk 0:00:42.1]} 59. Kf8 {[%clk 0:00:06.5]}
59... e2 {[%clk 0:00:42.6]} 60. Kg7 {[%clk 0:00:07.4]} 60... Ra1 {[%clk
0:00:41.1]} 61. Bg6 {[%clk 0:00:08.3]} 61... Ra7+ {[%clk 0:00:40.2]} 62. Kg8
{[%clk 0:00:08.3]} 62... Qb8+ {[%clk 0:00:39.4]} 63. Be8 {[%clk 0:00:07.6]}
63... Qxe8# {[%clk 0:00:40.3]} 0-1

[Event "*** Titled Tuesday Blitz"]
[Site "Chess.com"]
[Date "2021.04.20"]
[Round "7"]
[White "Rytenko_V"]
[Black "artichaud"]
[Result "0-1"]
[WhiteElo "2330"]
[BlackElo "2233"]
[TimeControl "180+1"]
[EndTime "11:17:33 PDT"]
[Termination "artichaud won by checkmate"]

1. d4 {[%clk 0:03:00.9]} 1... d6 {[%clk 0:02:58.7]} 2. c4 {[%clk 0:03:01.8]}
2... e5 {[%clk 0:02:58]} 3. Nc3 {[%clk 0:03:02.7]} 3... Nd7 {[%clk 0:02:56.5]}
4. Nf3 {[%clk 0:03:00.5]} 4... Ngf6 {[%clk 0:02:56.6]} 5. e4 {[%clk 0:03:00.3]}
5... Be7 {[%clk 0:02:56.3]} 6. d5 {[%clk 0:02:59.5]} 6... O-O {[%clk 0:02:43]}
7. h3 {[%clk 0:02:59.6]} 7... Nc5 {[%clk 0:02:36.8]} 8. Bd3 {[%clk 0:02:57.9]}
8... a5 {[%clk 0:02:37.1]} 9. Be3 {[%clk 0:02:57.2]} 9... b6 {[%clk 0:02:34.4]}
10. O-O {[%clk 0:02:55.6]} 10... Ne8 {[%clk 0:02:32.4]} 11. Qc2 {[%clk
0:02:54.7]} 11... g6 {[%clk 0:02:28.9]} 12. a3 {[%clk 0:02:41.6]} 12... Ng7
{[%clk 0:02:25.1]} 13. b4 {[%clk 0:02:39.6]} 13... Nxd3 {[%clk 0:02:19.6]} 14.
Qxd3 {[%clk 0:02:38.8]} 14... f5 {[%clk 0:02:20.5]} 15. Bh6 {[%clk 0:02:16.3]}
15... Rf7 {[%clk 0:02:11.3]} 16. c5 {[%clk 0:02:03.4]} 16... Nh5 {[%clk
0:01:46.3]} 17. Rac1 {[%clk 0:01:29.6]} 17... axb4 {[%clk 0:01:43.4]} 18. axb4
{[%clk 0:01:29.3]} 18... bxc5 {[%clk 0:01:43.6]} 19. bxc5 {[%clk 0:01:29]} 19...
Ba6 {[%clk 0:01:44.1]} 20. Nb5 {[%clk 0:01:26.2]} 20... fxe4 {[%clk 0:01:42]}
21. Qxe4 {[%clk 0:01:21.1]} 21... Bxb5 {[%clk 0:01:41]} 22. Rfe1 {[%clk
0:01:21.5]} 22... Bd7 {[%clk 0:01:24.4]} 23. cxd6 {[%clk 0:01:17.8]} 23... cxd6
{[%clk 0:01:23.6]} 24. Ra1 {[%clk 0:01:15.7]} 24... Rxa1 {[%clk 0:01:21.6]} 25.
Rxa1 {[%clk 0:01:16.6]} 25... Nf4 {[%clk 0:01:05.9]} 26. Nxe5 {[%clk 0:01:03]}
26... dxe5 {[%clk 0:01:01.7]} 27. d6 {[%clk 0:00:59.3]} 27... Bxd6 {[%clk
0:00:48.1]} 28. Ra8 {[%clk 0:00:58.6]} 28... Bc8 {[%clk 0:00:45.6]} 29. Qc4
{[%clk 0:00:53.4]} 29... Bc7 {[%clk 0:00:40.1]} 30. h4 {[%clk 0:00:39.2]} 30...
Ne6 {[%clk 0:00:32.4]} 31. g3 {[%clk 0:00:13.6]} 31... Nd4 {[%clk 0:00:26]} 32.
Bg5 {[%clk 0:00:09.8]} 32... Qd7 {[%clk 0:00:25.7]} 33. Bh6 {[%clk 0:00:04.5]}
33... Nf5 {[%clk 0:00:16.6]} 34. Bg5 {[%clk 0:00:03.1]} 34... h6 {[%clk
0:00:15.7]} 35. Bc1 {[%clk 0:00:01.8]} 35... Kh7 {[%clk 0:00:14.1]} 36. Kh2
{[%clk 0:00:02.2]} 36... Re7 {[%clk 0:00:13.1]} 37. Ra7 {[%clk 0:00:02.3]} 37...
Qd6 {[%clk 0:00:10.9]} 38. Bb2 {[%clk 0:00:01.8]} 38... Be6 {[%clk 0:00:10.5]}
39. Ra6 {[%clk 0:00:02.2]} 39... Qd7 {[%clk 0:00:09.9]} 40. Qc3 {[%clk 0:00:02]}
40... Bf7 {[%clk 0:00:09.4]} 41. Ra7 {[%clk 0:00:02.4]} 41... Nd4 {[%clk
0:00:09.2]} 42. Ba3 {[%clk 0:00:02.5]} 42... Re6 {[%clk 0:00:07.8]} 43. Qd2
{[%clk 0:00:01.9]} 43... Nf3+ {[%clk 0:00:06.6]} 44. Kg2 {[%clk 0:00:01.4]}
44... Nxd2 {[%clk 0:00:07.3]} 45. Bb4 {[%clk 0:00:02.3]} 45... Qd5+ {[%clk
0:00:06.9]} 46. Kg1 {[%clk 0:00:03.2]} 46... Rc6 {[%clk 0:00:06.3]} 47. Ra5
{[%clk 0:00:04.1]} 47... Nf3+ {[%clk 0:00:04.6]} 48. Kg2 {[%clk 0:00:03.7]}
48... Bxa5 {[%clk 0:00:05.1]} 49. Kh3 {[%clk 0:00:04.6]} 49... Ng1+ {[%clk
0:00:03.8]} 50. Kg4 {[%clk 0:00:05.5]} 50... Qe4+ {[%clk 0:00:02.9]} 51. f4
{[%clk 0:00:06]} 51... exf4 {[%clk 0:00:02.8]} 52. h5 {[%clk 0:00:06.9]} 52...
f3# {[%clk 0:00:02.9]} 0-1

[Event "*** Titled Tuesday Blitz"]
[Site "Chess.com"]
[Date "2021.04.20"]
[Round "7"]
[White "Shahaliyev"]
[Black "JAAC2002"]
[Result "1/2-1/2"]
[WhiteElo "2669"]
[BlackElo "2528"]
[TimeControl "180+1"]
[EndTime "11:17:34 PDT"]
[Termination "Game drawn - insufficient material"]

1. e4 {[%clk 0:03:00.9]} 1... e6 {[%clk 0:02:59.4]} 2. d4 {[%clk 0:03:00.6]}
2... d5 {[%clk 0:02:59.8]} 3. Nc3 {[%clk 0:03:01]} 3... Bb4 {[%clk 0:02:57.5]}
4. a3 {[%clk 0:02:55.3]} 4... Bxc3+ {[%clk 0:02:54.5]} 5. bxc3 {[%clk
0:02:56.2]} 5... dxe4 {[%clk 0:02:54.1]} 6. Qg4 {[%clk 0:02:56.9]} 6... Nf6
{[%clk 0:02:54.3]} 7. Qxg7 {[%clk 0:02:57.1]} 7... Rg8 {[%clk 0:02:54.6]} 8. Qh6
{[%clk 0:02:57.5]} 8... Rg6 {[%clk 0:02:50.5]} 9. Qd2 {[%clk 0:02:50.6]} 9... c5
{[%clk 0:02:47.3]} 10. Ne2 {[%clk 0:02:50]} 10... Nc6 {[%clk 0:02:39.4]} 11. Nf4
{[%clk 0:02:48.1]} 11... Rg8 {[%clk 0:02:20.7]} 12. Bb2 {[%clk 0:02:46.2]} 12...
Qb6 {[%clk 0:02:06.8]} 13. Rb1 {[%clk 0:02:38.7]} 13... Bd7 {[%clk 0:02:06.7]}
14. Be2 {[%clk 0:02:28.4]} 14... O-O-O {[%clk 0:02:05.6]} 15. O-O {[%clk
0:02:27.8]} 15... Nd5 {[%clk 0:01:57.1]} 16. Nxd5 {[%clk 0:01:58.4]} 16... exd5
{[%clk 0:01:58]} 17. c4 {[%clk 0:01:59]} 17... Bh3 {[%clk 0:01:43.3]} 18. g3
{[%clk 0:01:40.1]} 18... Bxf1 {[%clk 0:01:43.2]} 19. Bxf1 {[%clk 0:01:37.9]}
19... Nxd4 {[%clk 0:01:41.2]} 20. Qf4 {[%clk 0:01:16.6]} 20... f5 {[%clk
0:01:07.4]} 21. Bxd4 {[%clk 0:00:40.7]} 21... Qxb1 {[%clk 0:01:06.8]} 22. Be5
{[%clk 0:00:35]} 22... Rgf8 {[%clk 0:00:42.8]} 23. cxd5 {[%clk 0:00:27.3]} 23...
Rxd5 {[%clk 0:00:36.1]} 24. Kg2 {[%clk 0:00:27.8]} 24... Qd1 {[%clk 0:00:30.1]}
25. Bc4 {[%clk 0:00:20.7]} 25... Qf3+ {[%clk 0:00:29.4]} 26. Kh3 {[%clk
0:00:19]} 26... Qxf4 {[%clk 0:00:22.7]} 27. Bxf4 {[%clk 0:00:18.3]} 27... Rfd8
{[%clk 0:00:18.8]} 28. Bxd5 {[%clk 0:00:17]} 28... Rxd5 {[%clk 0:00:19.7]} 29.
Kh4 {[%clk 0:00:17.5]} 29... c4 {[%clk 0:00:18.1]} 30. c3 {[%clk 0:00:13.7]}
30... Rd3 {[%clk 0:00:15.9]} 31. Be5 {[%clk 0:00:13.7]} 31... Rf3 {[%clk
0:00:08.7]} 32. Bd4 {[%clk 0:00:11.2]} 32... b5 {[%clk 0:00:09.2]} 33. Kg5
{[%clk 0:00:11.3]} 33... a5 {[%clk 0:00:09]} 34. Kh6 {[%clk 0:00:09.8]} 34... f4
{[%clk 0:00:09.2]} 35. Kxh7 {[%clk 0:00:07.9]} 35... fxg3 {[%clk 0:00:09.5]} 36.
hxg3 {[%clk 0:00:08.1]} 36... Kd7 {[%clk 0:00:05.5]} 37. g4 {[%clk 0:00:08.1]}
37... Rf4 {[%clk 0:00:05.3]} 38. g5 {[%clk 0:00:08.1]} 38... Rg4 {[%clk
0:00:05.4]} 39. Kg6 {[%clk 0:00:08.1]} 39... Ke6 {[%clk 0:00:05.4]} 40. Bb6
{[%clk 0:00:06.6]} 40... b4 {[%clk 0:00:02.8]} 41. cxb4 {[%clk 0:00:06.7]} 41...
axb4 {[%clk 0:00:03.7]} 42. axb4 {[%clk 0:00:07.1]} 42... c3 {[%clk 0:00:04.2]}
43. Be3 {[%clk 0:00:07.6]} 43... c2 {[%clk 0:00:04.7]} 44. b5 {[%clk 0:00:07.9]}
44... Kd5 {[%clk 0:00:04.9]} 45. Kf5 {[%clk 0:00:07.8]} 45... Rg1 {[%clk
0:00:04.6]} 46. g6 {[%clk 0:00:08.3]} 46... c1=Q {[%clk 0:00:04.9]} 47. Bxc1
{[%clk 0:00:08.7]} 47... Rxc1 {[%clk 0:00:05.7]} 48. g7 {[%clk 0:00:09.1]} 48...
Rg1 {[%clk 0:00:06]} 49. Kf6 {[%clk 0:00:09.6]} 49... Kc5 {[%clk 0:00:06.5]} 50.
Kf7 {[%clk 0:00:08.9]} 50... Kxb5 {[%clk 0:00:06.9]} 51. g8=Q {[%clk 0:00:09.4]}
51... Rxg8 {[%clk 0:00:07.7]} 52. Kxg8 {[%clk 0:00:10.3]} 52... Kc4 {[%clk
0:00:08.6]} 53. Kf7 {[%clk 0:00:10.8]} 53... Kd3 {[%clk 0:00:09.5]} 54. Ke6
{[%clk 0:00:11.3]} 54... Ke2 {[%clk 0:00:09.4]} 55. Ke5 {[%clk 0:00:11.3]} 55...
Kf3 {[%clk 0:00:09.7]} 56. Kd4 {[%clk 0:00:11.4]} 56... Kxf2 {[%clk 0:00:09.3]}
57. Kxe4 {[%clk 0:00:09.8]} 1/2-1/2

[Event "*** Titled Tuesday Blitz"]
[Site "Chess.com"]
[Date "2021.04.20"]
[Round "7"]
[White "halldorgretar"]
[Black "NefeLV"]
[Result "1-0"]
[WhiteElo "2121"]
[BlackElo "1811"]
[TimeControl "180+1"]
[EndTime "11:17:35 PDT"]
[Termination "halldorgretar won by checkmate"]

1. d4 {[%clk 0:02:36.6]} 1... e6 {[%clk 0:03:00.9]} 2. c4 {[%clk 0:02:31.7]}
2... d5 {[%clk 0:03:01.8]} 3. Nf3 {[%clk 0:02:30.4]} 3... Nf6 {[%clk 0:02:59.9]}
4. g3 {[%clk 0:02:29.9]} 4... Be7 {[%clk 0:02:59.6]} 5. Bg2 {[%clk 0:02:29.3]}
5... O-O {[%clk 0:02:59.8]} 6. O-O {[%clk 0:02:29]} 6... c5 {[%clk 0:02:59.9]}
7. cxd5 {[%clk 0:02:27.4]} 7... exd5 {[%clk 0:02:58.6]} 8. Nc3 {[%clk
0:02:26.6]} 8... Nc6 {[%clk 0:02:55.3]} 9. Bg5 {[%clk 0:02:11.5]} 9... cxd4
{[%clk 0:02:50.3]} 10. Nxd4 {[%clk 0:02:08.8]} 10... h6 {[%clk 0:02:51.2]} 11.
Bf4 {[%clk 0:01:20.4]} 11... Be6 {[%clk 0:02:39.9]} 12. Rc1 {[%clk 0:01:09.3]}
12... Rc8 {[%clk 0:02:36.1]} 13. Nxc6 {[%clk 0:00:59.7]} 13... bxc6 {[%clk
0:02:35.1]} 14. Qa4 {[%clk 0:00:57]} 14... d4 {[%clk 0:02:32.3]} 15. Rfd1 {[%clk
0:00:53.5]} 15... c5 {[%clk 0:02:27.4]} 16. Qxa7 {[%clk 0:00:50.7]} 16... Bd5
{[%clk 0:02:22.1]} 17. Nxd5 {[%clk 0:00:47.8]} 17... Nxd5 {[%clk 0:02:21.1]} 18.
Bxd5 {[%clk 0:00:46.4]} 18... Qxd5 {[%clk 0:02:20.3]} 19. Qxe7 {[%clk
0:00:45.7]} 19... Rfe8 {[%clk 0:02:18.9]} 20. Qd6 {[%clk 0:00:14.4]} 20... Qxa2
{[%clk 0:02:04.3]} 21. Rc2 {[%clk 0:00:14.3]} 21... Qb3 {[%clk 0:01:58]} 22.
Rdc1 {[%clk 0:00:14.3]} 22... Red8 {[%clk 0:01:50.2]} 23. Qe5 {[%clk 0:00:13.9]}
23... c4 {[%clk 0:01:40.9]} 24. Qf5 {[%clk 0:00:11.8]} 24... Rc6 {[%clk
0:01:28.4]} 25. h4 {[%clk 0:00:11.1]} 25... Rdc8 {[%clk 0:01:15.7]} 26. Qe4
{[%clk 0:00:10.7]} 26... Qb6 {[%clk 0:01:07.5]} 27. Be5 {[%clk 0:00:08.4]} 27...
c3 {[%clk 0:00:53.5]} 28. Bxd4 {[%clk 0:00:07.2]} 28... cxb2 {[%clk 0:00:53.2]}
29. Bxb6 {[%clk 0:00:06.3]} 29... bxc1=Q+ {[%clk 0:00:51]} 30. Rxc1 {[%clk
0:00:06.5]} 30... Rxc1+ {[%clk 0:00:49.5]} 31. Kg2 {[%clk 0:00:07.4]} 31... R1c6
{[%clk 0:00:48.9]} 32. Bd4 {[%clk 0:00:07.4]} 32... Rg6 {[%clk 0:00:46.5]} 33.
Qe5 {[%clk 0:00:06.9]} 33... Rcc6 {[%clk 0:00:35.9]} 34. f4 {[%clk 0:00:06.7]}
34... h5 {[%clk 0:00:25.1]} 35. f5 {[%clk 0:00:05.5]} 35... Rgf6 {[%clk
0:00:22.5]} 36. Qe8+ {[%clk 0:00:04.9]} 36... Kh7 {[%clk 0:00:21.8]} 37. Bxf6
{[%clk 0:00:05.4]} 37... Rxf6 {[%clk 0:00:21.9]} 38. e4 {[%clk 0:00:05.9]} 38...
g6 {[%clk 0:00:20.1]} 39. Qe7 {[%clk 0:00:04.3]} 39... Kg7 {[%clk 0:00:19.2]}
40. e5 {[%clk 0:00:03.2]} 40... Rxf5 {[%clk 0:00:18.7]} 41. e6 {[%clk
0:00:03.3]} 41... Re5 {[%clk 0:00:17.6]} 42. Qxf7+ {[%clk 0:00:02.8]} 42... Kh6
{[%clk 0:00:16.6]} 43. Qf8+ {[%clk 0:00:02.5]} 43... Kh7 {[%clk 0:00:16.2]} 44.
e7 {[%clk 0:00:02.7]} 44... Re2+ {[%clk 0:00:14.1]} 45. Kf3 {[%clk 0:00:01.3]}
45... Re1 {[%clk 0:00:13.2]} 46. Qf7+ {[%clk 0:00:02.2]} 46... Kh6 {[%clk
0:00:12.2]} 47. Qf8+ {[%clk 0:00:02.6]} 47... Kh7 {[%clk 0:00:12]} 48. Qf7+
{[%clk 0:00:03.2]} 48... Kh6 {[%clk 0:00:12.3]} 49. e8=Q {[%clk 0:00:03.4]}
49... Rf1+ {[%clk 0:00:11.1]} 50. Kg2 {[%clk 0:00:03.8]} 50... Rg1+ {[%clk
0:00:10.4]} 51. Kxg1 {[%clk 0:00:02]} 51... g5 {[%clk 0:00:09.7]} 52. Qg6#
{[%clk 0:00:02.6]} 1-0